fUST/lending_fUST_20251115
["ID","MTS","AMOUNT","RATE_DAILY","PERIOD"]
[394018338,1763197840342,-151.0,0.00024761,7]
[394018339,1763197840351,-151.0,0.00024761,7]
[394018340,1763197840360,-151.0,0.00024761,7]
[394018341,1763197840369,-151.0,0.00024761,7]
[394018342,1763197840378,-211.855239,0.00024761,7]
[394018343,1763197840387,-153.799581,0.00024761,7]
[394018344,1763197840395,-186.560179,0.00024761,7]
[394018345,1763197840405,-151.0,0.00024763,7]
[394018346,1763197840414,-151.0,0.00024763,7]
[394018347,1763197840423,-151.0,0.00024763,7]
[394018348,1763197840432,-151.0,0.00024763,7]
[394018349,1763197840441,-151.0,0.00024763,7]
[394018350,1763197840450,-151.0,0.00024763,7]
[394018351,1763197840459,-195.39,0.00024763,2]
[394018352,1763197840468,-151.0,0.00024763,7]
[394018353,1763197840477,-151.0,0.00024763,7]
[394018354,1763197840486,-151.0,0.00024763,7]
[394018355,1763197840496,-151.0,0.00024763,7]
[394018356,1763197840505,-224.033665,0.00024763,7]
[394018357,1763197840514,-519.421206,0.00024763,7]
[394018358,1763197840523,-215.015507,0.00024763,7]
[394018359,1763197840532,-519.421206,0.00024763,7]
[394018360,1763197840541,-519.421206,0.00024763,7]
[394018361,1763197840550,-519.421206,0.00024763,7]
[394018362,1763197840560,-519.421206,0.00024763,7]
[394018363,1763197840569,-519.421206,0.00024763,7]
[394018364,1763197840578,-485.73811,0.00024763,7]
[394018365,1763197840587,-485.73811,0.00024763,7]
[394018366,1763197840595,-519.421206,0.00024763,7]
[394018367,1763197840605,-485.73811,0.00024763,7]
[394018368,1763197840614,-519.421206,0.00024763,7]
[394018369,1763197840623,-519.421206,0.00024763,7]
[394018370,1763197840632,-485.73811,0.00024763,7]
[394018371,1763197840642,-485.73811,0.00024763,7]
[394018372,1763197840651,-485.73811,0.00024763,7]
[394018373,1763197840660,-519.421206,0.00024763,7]
[394018374,1763197840669,-519.421206,0.00024763,7]
[394018375,1763197840678,-485.73811,0.00024763,7]
[394018376,1763197840687,-519.421212,0.00024763,7]
[394018377,1763197840696,-485.73811,0.00024763,7]
[394018378,1763197840705,-485.73811,0.00024763,7]
[394018379,1763197840714,-485.73811,0.00024763,7]
[394018380,1763197840723,-485.73811,0.00024763,7]
[394018381,1763197840732,-485.738108,0.00024763,7]
[394018382,1763197840741,-2437.642082,0.00024763,7]
[394018383,1763197840751,-2437.642082,0.00024763,7]
[394018384,1763197840760,-1933.03303279,0.00024763,7]
[394018385,1763197840775,-433.33155169,0.00024763,7]
[394018386,1763197840785,-71.27749752,0.00024763,7]
[394018387,1763197840795,-2437.642082,0.00024763,7]
[394018388,1763197840803,-77.17152744,0.00024763,7]
[394018389,1763197840815,-892.80800524,0.00024763,7]
[394018397,1763197843056,-1135.04524533,0.00024763,7]
[394018398,1763197843070,-332.61730399,0.00024763,7]
[394018399,1763197843079,-2437.642082,0.00024763,7]
[394018400,1763197843089,-2437.642082,0.00024763,7]
[394018401,1763197843099,-2437.642082,0.00024763,7]
[394018402,1763197843109,-2437.642082,0.00024763,7]
[394018403,1763197843118,-2437.642082,0.00024763,7]
[394018404,1763197843127,-2437.642082,0.00024763,7]
[394018405,1763197843136,-2437.642081,0.00024763,7]
[394018406,1763197843146,-151.0,0.00024764,7]
[394018407,1763197843155,-151.0,0.00024764,7]
[394018408,1763197843164,-151.0,0.00024764,7]
[394018409,1763197843174,-151.0,0.00024764,7]
[394018410,1763197843183,-571.289141,0.00024764,2]
[394018411,1763197843195,-571.289141,0.00024764,2]
[394018412,1763197843204,-571.289141,0.00024764,2]
[394018413,1763197843214,-571.289141,0.00024764,2]
[394018414,1763197843223,-571.289141,0.00024764,2]
[394018415,1763197843233,-571.289141,0.00024764,2]
[394018416,1763197843243,-571.289141,0.00024764,2]
[394018417,1763197843252,-151.0,0.00024764,7]
[394018418,1763197843262,-571.289141,0.00024764,2]
[394018419,1763197843271,-151.0,0.00024764,7]
[394018421,1763197843280,-197.010813,0.00024764,7]
[394018423,1763197843289,-571.289141,0.00024764,2]
[394018424,1763197843298,-571.289141,0.00024764,2]
[394018425,1763197843307,-217.552356,0.00024764,7]
[394018426,1763197843318,-571.289141,0.00024764,2]
[394018427,1763197843327,-571.289141,0.00024764,2]
[394018428,1763197843336,-571.289141,0.00024764,2]
[394018429,1763197843346,-571.289141,0.00024764,2]
[394018430,1763197843355,-571.289141,0.00024764,2]
[394018431,1763197843364,-571.289141,0.00024764,2]
[394018432,1763197843373,-165.521944,0.00024764,7]
[394018433,1763197843382,-156.366489,0.00024764,7]
[394018434,1763197843391,-151.0,0.00024764,7]
[394018435,1763197843400,-151.0,0.00024764,7]
[394018436,1763197843409,-161.188648,0.00024764,7]
[394018437,1763197843419,-151.0,0.00024764,7]
[394018438,1763197843428,-151.0,0.00024764,7]
[394018439,1763197843437,-512.678202,0.00024764,7]
[394018440,1763197843447,-151.0,0.00024764,7]
[394018441,1763197843456,-151.0,0.00024764,7]
[394018442,1763197843465,-512.678202,0.00024764,7]
[394018443,1763197843474,-151.0,0.00024764,7]
[394018444,1763197843483,-512.678202,0.00024764,7]
[394018445,1763197843492,-151.0,0.00024764,7]
[394018446,1763197843501,-512.678202,0.00024764,7]
[394018448,1763197843511,-151.0,0.00024764,7]
[394018450,1763197843522,-151.0,0.00024764,7]
[394018452,1763197843535,-512.678202,0.00024764,7]
[394018454,1763197843544,-512.678202,0.00024764,7]
[394018456,1763197843553,-512.678202,0.00024764,7]
[394018458,1763197843563,-512.678202,0.00024764,7]
[394018460,1763197843572,-173.07871069,0.00024764,7]
[394018462,1763197843584,-289.54641168,0.00024764,7]
[394018715,1763197846146,-50.05307963,0.00024764,7]
[394018717,1763197846157,-203.68945227,0.00024764,7]
[394018728,1763197846261,-308.98874973,0.00024764,7]
[394018730,1763197846273,-512.678202,0.00024764,7]
[394018732,1763197846282,-438.33304677,0.00024764,7]
[394019518,1763197854018,1255.20496232,0.00032878,120]
[394021740,1763198106361,-1725.0,0.00023388,2]
[394021744,1763198246525,-1108.77203774,0.00022693,2]
[394021745,1763198639257,225.090246,0.00013699,2]
[394021746,1763198639958,225.090246,0.00020187,2]
[394021757,1763199021623,-4189.14386404,0.00021964,2]
[394021758,1763199021646,-150.0,0.00022289,2]
[394021759,1763199021669,-294.71947767,0.00022392,2]
[394021760,1763199021690,-157.46832248,0.000225,2]
[394021761,1763199021712,-1531.47535178,0.00023262,2]
[394021762,1763199021734,-1200.0,0.00023387,2]
[394021763,1763199021754,-1853.83,0.00023388,2]
[394021764,1763199021775,-250.0,0.00023401,2]
[394021765,1763199021796,-300.0,0.00023541,2]
[394021766,1763199021819,-300.0,0.00023541,2]
[394021767,1763199021841,-9560.45205437,0.00023542,2]
[394021768,1763199021863,-500.0,0.00023542,2]
[394021769,1763199021884,-14034.426859,0.00023542,2]
[394021770,1763199021906,-175.45800288,0.00023571,2]
[394021771,1763199021928,-315.82440519,0.00023571,2]
[394021772,1763199021949,-500.0,0.00023573,2]
[394021773,1763199021969,-500.0,0.00023573,2]
[394021774,1763199021990,-222.84573978,0.00023573,2]
[394021775,1763199022010,-500.0,0.00023573,2]
[394021776,1763199022031,-500.0,0.00023573,2]
[394021777,1763199022052,-500.0,0.00023573,2]
[394021778,1763199022072,-500.0,0.00023573,2]
[394021779,1763199022093,-500.0,0.00023573,2]
[394021780,1763199022113,-500.0,0.00023573,2]
[394021781,1763199022136,-184.39492404,0.00023573,2]
[394021782,1763199022156,-500.0,0.000236,2]
[394021783,1763199022177,-230.96052972,0.00023655,2]
[394021784,1763199022198,-2173.1161045,0.00023733,2]
[394021785,1763199022221,-500.0,0.00024047,2]
[394021786,1763199022243,-500.0,0.00024047,2]
[394021787,1763199022269,-500.0,0.00024047,2]
[394021788,1763199022291,-500.0,0.00024047,2]
[394021789,1763199022314,-500.0,0.00024047,2]
[394021790,1763199022337,-500.0,0.00024047,2]
[394021791,1763199022360,-500.0,0.00024047,2]
[394021792,1763199022386,-500.0,0.00024047,2]
[394021793,1763199022407,-500.0,0.00024047,2]
[394021794,1763199022429,-500.0,0.00024047,2]
[394021795,1763199022451,-556.92825261,0.00024047,2]
[394021796,1763199022474,-500.0,0.00024047,2]
[394021797,1763199022499,-500.0,0.00024047,2]
[394021798,1763199022521,-500.0,0.00024047,2]
[394021799,1763199022544,-500.0,0.00024047,2]
[394021800,1763199022569,-500.0,0.00024047,2]
[394021801,1763199022591,-223.90542627,0.00024047,2]
[394021802,1763199022613,-500.0,0.00024047,2]
[394021803,1763199022636,-500.0,0.00024047,2]
[394021804,1763199022658,-500.0,0.00024047,2]
[394021805,1763199022681,-500.0,0.00024047,2]
[394021806,1763199022703,-558.18037678,0.00024047,2]
[394021807,1763199022728,-500.0,0.00024047,2]
[394021808,1763199022753,-500.0,0.00024047,2]
[394021809,1763199022776,-500.0,0.00024047,2]
[394021810,1763199022807,-500.0,0.00024047,2]
[394021811,1763199022833,-486.43789118,0.00024047,2]
[394021812,1763199022861,-500.0,0.00024047,2]
[394021813,1763199022889,-500.0,0.00024047,2]
[394021814,1763199022913,-500.0,0.00024047,2]
[394021815,1763199022936,-500.0,0.00024047,2]
[394021816,1763199022962,-500.0,0.00024047,2]
[394021817,1763199022985,-500.0,0.00024047,2]
[394021818,1763199023010,-500.0,0.00024047,2]
[394021819,1763199023033,-500.0,0.00024047,2]
[394021820,1763199023058,-500.0,0.00024047,2]
[394021821,1763199023081,-500.0,0.00024047,2]
[394021822,1763199023107,-500.0,0.00024047,2]
[394021823,1763199023133,-500.0,0.00024047,2]
[394021824,1763199023161,-500.0,0.00024047,2]
[394021825,1763199023472,-500.0,0.00024047,2]
[394021826,1763199023503,-500.0,0.00024047,2]
[394021827,1763199023531,-194.15023567,0.00024047,2]
[394021828,1763199023559,-500.0,0.00024047,2]
[394021829,1763199023584,-554.04865457,0.00024047,2]
[394021830,1763199023606,-500.0,0.00024121,2]
[394021831,1763199023628,-1000.0,0.00024121,2]
[394021832,1763199023652,-1000.0,0.00024121,2]
[394021833,1763199023675,-500.0,0.00024121,2]
[394021834,1763199023698,-295.41491302,0.00024121,2]
[394021835,1763199023721,-1000.0,0.00024121,2]
[394021836,1763199023745,-580.648452,0.00024148,2]
[394021837,1763199023775,-177.0,0.00024289,2]
[394021838,1763199023801,-151.0,0.00024413,7]
[394021839,1763199023823,-152.791829,0.00024413,7]
[394021840,1763199023852,-151.0,0.00024414,2]
[394021841,1763199023877,-151.0,0.00024414,2]
[394021842,1763199023901,-151.0,0.00024414,2]
[394021843,1763199023923,-1206.97432291,0.00024515,2]
[394021844,1763199023945,-916.3055368,0.00024539,2]
[394021845,1763199023969,-26431.293016,0.00024539,2]
[394021846,1763199023995,-151.0,0.00024539,2]
[394021847,1763199024017,-151.0,0.00024539,2]
[394021848,1763199024039,-151.0,0.00024539,2]
[394021849,1763199024066,-458.1527684,0.00024539,2]
[394021850,1763199024089,-500.0,0.00024573,2]
[394021851,1763199024113,-26.65268934,0.00024657,2]
[394021878,1763199031985,-200.34611568,0.00024657,2]
[394021879,1763199032007,-907.99522009,0.00024657,2]
[394021880,1763199032030,-313.65596922,0.00024657,2]
[394021881,1763199032052,-564.5807446,0.00024657,2]
[394021882,1763199032074,-717.82152906,0.00024657,2]
[394021883,1763199032096,-152.267973,0.00024658,7]
[394021884,1763199032119,-151.0,0.00024658,7]
[394021885,1763199032142,-161.503181,0.00024658,7]
[394021886,1763199032164,-151.0,0.00024658,7]
[394021887,1763199032186,-151.0,0.00024658,7]
[394021888,1763199032209,-151.0,0.00024658,7]
[394021889,1763199032232,-151.0,0.00024658,7]
[394021890,1763199032256,-208.788539,0.00024658,7]
[394021891,1763199032278,-208.788539,0.00024658,7]
[394021892,1763199032301,-208.788539,0.00024658,7]
[394021893,1763199032324,-208.788539,0.00024658,7]
[394021894,1763199032347,-152.965475,0.00024658,7]
[394021895,1763199032372,-208.788539,0.00024658,7]
[394021896,1763199032394,-208.788539,0.00024658,7]
[394021897,1763199032416,-208.788539,0.00024658,7]
[394021898,1763199032438,-208.788539,0.00024658,7]
[394021899,1763199032460,-151.0,0.00024658,7]
[394021900,1763199032483,-151.0,0.00024658,7]
[394021901,1763199032504,-151.0,0.00024658,7]
[394021902,1763199032526,-151.0,0.00024658,7]
[394021903,1763199032562,-151.0,0.00024658,7]
[394021904,1763199032586,-151.0,0.00024658,7]
[394021905,1763199032608,-151.0,0.00024658,7]
[394021906,1763199032631,-151.0,0.00024658,7]
[394021907,1763199032654,-151.0,0.00024658,7]
[394021908,1763199032676,-151.0,0.00024658,7]
[394021909,1763199032698,-151.0,0.00024658,7]
[394021910,1763199032721,-151.0,0.00024658,7]
[394021911,1763199032743,-151.870863,0.00024658,7]
[394021912,1763199032766,-151.0,0.00024658,7]
[394021913,1763199032788,-155.161586,0.00024658,7]
[394021914,1763199032814,-151.0,0.00024658,7]
[394021915,1763199032837,-151.0,0.00024658,7]
[394021916,1763199032862,-151.0,0.00024658,7]
[394021917,1763199032887,-151.0,0.00024658,7]
[394021918,1763199032910,-151.0,0.00024658,7]
[394021919,1763199032932,-151.0,0.00024658,7]
[394021920,1763199032953,-151.0,0.00024658,7]
[394021921,1763199032976,-151.0,0.00024658,7]
[394021922,1763199032998,-151.0,0.00024658,7]
[394021923,1763199033020,-151.0,0.00024658,7]
[394021924,1763199033042,-151.0,0.00024658,7]
[394021925,1763199033064,-151.0,0.00024658,7]
[394021926,1763199033086,-161.844414,0.00024658,7]
[394021927,1763199033107,-155.911348,0.00024658,7]
[394021928,1763199033129,-151.0,0.00024658,7]
[394021929,1763199033151,-151.0,0.00024658,7]
[394021930,1763199033173,-151.0,0.00024658,7]
[394021931,1763199033195,-151.0,0.00024658,7]
[394021932,1763199033217,-151.0,0.00024658,7]
[394021933,1763199033240,-151.0,0.00024658,7]
[394021934,1763199033261,-151.0,0.00024658,7]
[394021935,1763199033283,-151.0,0.00024658,7]
[394021936,1763199033545,-239.32105,0.00024658,7]
[394021937,1763199033570,-151.0,0.00024658,7]
[394021938,1763199033593,-151.0,0.00024658,7]
[394021939,1763199033618,-151.0,0.00024658,7]
[394021940,1763199033648,-151.0,0.00024658,7]
[394021941,1763199033672,-151.0,0.00024658,7]
[394021942,1763199033701,-251.59142,0.00024658,7]
[394021943,1763199033724,-151.0,0.00024658,7]
[394021944,1763199033748,-151.0,0.00024658,7]
[394021945,1763199033772,-151.0,0.00024658,7]
[394021946,1763199033794,-151.0,0.00024658,7]
[394021947,1763199033821,-151.0,0.00024658,7]
[394021948,1763199033845,-151.0,0.00024658,7]
[394021949,1763199033868,-151.0,0.00024658,7]
[394021950,1763199033895,-158.364088,0.00024658,7]
[394021952,1763199033918,-152.175684,0.00024658,7]
[394021953,1763199033942,-508.60763948,0.00024668,2]
[394021954,1763199033965,-754.01153941,0.00024668,2]
[394021955,1763199033988,-3586.24247566,0.00024697,2]
[394021956,1763199034010,-195.39,0.0002475,2]
[394021957,1763199034033,-152.141664,0.0002475,7]
[394021958,1763199034056,-151.0,0.0002475,7]
[394021959,1763199034079,-151.0,0.0002475,7]
[394021960,1763199034103,-157.417713,0.0002475,7]
[394021961,1763199034128,-269.026467,0.0002475,7]
[394021962,1763199034150,-151.0,0.0002475,7]
[394021963,1763199034173,-276.45577741,0.0002475,7]
[394021964,1763199034196,-151.0,0.0002475,7]
[394021965,1763199034220,-151.0,0.0002475,7]
[394021966,1763199034244,-3578.83,0.0002476,2]
[394021967,1763199034267,-151.0,0.0002476,7]
[394021968,1763199034290,-151.0,0.0002476,7]
[394021969,1763199034314,-151.0,0.0002476,7]
[394021970,1763199034336,-151.0,0.0002476,7]
[394021971,1763199034359,-151.0,0.0002476,7]
[394021972,1763199034381,-151.0,0.0002476,7]
[394021973,1763199034403,-151.0,0.0002476,7]
[394021974,1763199034425,-151.0,0.0002476,7]
[394021975,1763199034448,-151.0,0.0002476,7]
[394021976,1763199034471,-151.0,0.0002476,7]
[394021977,1763199034493,-151.0,0.0002476,7]
[394021978,1763199034515,-299.1043078,0.00024761,3]
[394021979,1763199034538,-153.028673,0.00024761,7]
[394021980,1763199034560,-283.08568,0.00024761,7]
[394021981,1763199034584,-151.0,0.00024761,7]
[394021982,1763199034606,-151.0,0.00024761,7]
[394021983,1763199034629,-151.0,0.00024761,7]
[394021984,1763199034652,-286.869006,0.00024761,7]
[394021985,1763199034674,-151.0,0.00024761,7]
[394021986,1763199034697,-187.495462,0.00024761,7]
[394021987,1763199034720,-189.16708531,0.00024761,3]
[394021988,1763199034743,-151.0,0.00024761,7]
[394021989,1763199034764,-151.0,0.00024761,7]
[394021990,1763199034787,-151.0,0.00024761,7]
[394021991,1763199034811,-151.0,0.00024761,7]
[394021992,1763199034832,-151.0,0.00024761,7]
[394021993,1763199034854,-151.0,0.00024761,7]
[394021994,1763199034877,-500.0,0.00024761,2]
[394021995,1763199034902,-355.67574279,0.00024761,2]
[394021996,1763199034924,-318.73225662,0.00024761,2]
[394021997,1763199034946,-500.0,0.00024761,2]
[394021998,1763199034969,-561.62242532,0.00024761,2]
[394021999,1763199034991,-500.0,0.00024761,2]
[394022000,1763199035012,-500.0,0.00024761,2]
[394022001,1763199035033,-3578.83,0.00024762,2]
[394022002,1763199035054,-151.0,0.00024762,7]
[394022003,1763199035076,-151.0,0.00024762,7]
[394022004,1763199035097,-151.0,0.00024762,7]
[394022005,1763199035118,-151.0,0.00024762,7]
[394022006,1763199035141,-151.0,0.00024762,2]
[394022007,1763199035163,-151.0,0.00024762,2]
[394022008,1763199035184,-151.0,0.00024762,2]
[394022009,1763199035207,-151.0,0.00024762,7]
[394022010,1763199035230,-208.788539,0.00024762,7]
[394022011,1763199035255,-208.788539,0.00024762,7]
[394022012,1763199035278,-208.788539,0.00024762,7]
[394022013,1763199035299,-208.788539,0.00024762,7]
[394022014,1763199035321,-3578.83,0.00024763,2]
[394022015,1763199035344,-3578.83,0.00024763,2]
[394022016,1763199035366,-171.532473,0.00024763,7]
[394022017,1763199035389,-171.532473,0.00024763,7]
[394022018,1763199035411,-171.532473,0.00024763,7]
[394022019,1763199035434,-151.0,0.00024763,7]
[394022020,1763199035457,-151.0,0.00024763,7]
[394022021,1763199035479,-151.0,0.00024763,7]
[394022022,1763199035501,-151.0,0.00024763,7]
[394022023,1763199035522,-151.0,0.00024763,7]
[394022024,1763199035544,-280.170971,0.00024763,7]
[394022025,1763199035565,-151.0,0.00024763,7]
[394022026,1763199035588,-296.383105,0.00024763,7]
[394022027,1763199035609,-151.0,0.00024763,7]
[394022028,1763199035631,-151.0,0.00024763,7]
[394022029,1763199035653,-191.29322,0.00024763,7]
[394022030,1763199035677,-151.0,0.00024763,7]
[394022031,1763199035700,-151.0,0.00024763,7]
[394022032,1763199035724,-151.0,0.00024763,7]
[394022033,1763199035746,-151.0,0.00024763,7]
[394022034,1763199035767,-175.79551,0.00024763,7]
[394022035,1763199035789,-3578.83,0.00024764,2]
[394022036,1763199035815,-912.3,0.00024764,2]
[394022037,1763199035837,-151.0,0.00024764,3]
[394022038,1763199035860,-151.0,0.00024764,3]
[394022039,1763199035886,-151.0,0.00024764,3]
[394022040,1763199035908,-151.0,0.00024764,7]
[394022041,1763199035930,-151.0,0.00024764,7]
[394022042,1763199035952,-151.0,0.00024764,7]
[394022043,1763199035974,-210.326501,0.00024764,7]
[394022044,1763199035996,-151.0,0.00024764,7]
[394022045,1763199036018,-151.000003,0.00024764,7]
[394022046,1763199036040,-151.0,0.00024764,7]
[394022047,1763199036060,-151.0,0.00024764,7]
[394022048,1763199036082,-151.0,0.00024764,7]
[394022049,1763199036104,-151.0,0.00024764,7]
[394022050,1763199036125,-151.0,0.00024764,7]
[394022051,1763199036146,-151.0,0.00024764,3]
[394022052,1763199036168,-202.19009506,0.00024764,3]
[394022053,1763199036191,-151.0,0.00024764,3]
[394022054,1763199036214,-151.0,0.00024764,3]
[394022055,1763199036237,-151.0,0.00024764,3]
[394022056,1763199036259,-151.0,0.00024764,3]
[394022057,1763199036282,-263.97651535,0.00024764,3]
[394022058,1763199036305,-273.16666592,0.00024764,3]
[394022059,1763199036330,-332.0,0.00024764,3]
[394022060,1763199036352,-151.0,0.00024764,3]
[394022061,1763199036375,-332.0,0.00024764,3]
[394022062,1763199036396,-151.0,0.00024764,3]
[394022063,1763199036420,-332.0,0.00024764,3]
[394022064,1763199036443,-151.0,0.00024764,2]
[394022065,1763199036466,-151.0,0.00024764,2]
[394022066,1763199036488,-151.0,0.00024764,2]
[394022067,1763199036512,-151.0,0.00024764,7]
[394022068,1763199036711,-208.788539,0.00024764,7]
[394022069,1763199036734,-208.788539,0.00024764,7]
[394022070,1763199036755,-208.788539,0.00024764,7]
[394022071,1763199036777,-208.788539,0.00024764,7]
[394022072,1763199036799,-151.0,0.00024764,7]
[394022073,1763199036825,-151.0,0.00024764,7]
[394022074,1763199036846,-151.0,0.00024764,7]
[394022075,1763199036868,-151.0,0.00024764,3]
[394022076,1763199036891,-151.0,0.00024764,3]
[394022077,1763199036911,-151.0,0.00024764,3]
[394022078,1763199036933,-332.0,0.00024764,3]
[394022079,1763199036954,-151.0,0.00024764,3]
[394022080,1763199036975,-332.0,0.00024764,3]
[394022081,1763199037002,-151.0,0.00024764,3]
[394022082,1763199037023,-332.0,0.00024764,3]
[394022083,1763199037045,-151.0,0.00024764,3]
[394022084,1763199037066,-332.0,0.00024764,3]
[394022085,1763199037086,-151.0,0.00024764,3]
[394022086,1763199037108,-151.0,0.00024764,3]
[394022087,1763199037130,-332.0,0.00024764,3]
[394022088,1763199037151,-151.0,0.00024764,3]
[394022089,1763199037172,-332.0,0.00024764,3]
[394022090,1763199037193,-151.0,0.00024764,3]
[394022091,1763199037216,-332.0,0.00024764,3]
[394022092,1763199037239,-151.0,0.00024764,3]
[394022093,1763199037261,-332.0,0.00024764,3]
[394022094,1763199037283,-151.0,0.00024764,3]
[394022095,1763199037305,-332.0,0.00024764,3]
[394022096,1763199037328,-151.0,0.00024764,3]
[394022097,1763199037349,-332.0,0.00024764,3]
[394022098,1763199037370,-151.0,0.00024764,3]
[394022099,1763199037393,-151.0,0.00024764,3]
[394022100,1763199037414,-151.0,0.00024764,3]
[394022101,1763199037436,-151.0,0.00024764,3]
[394022102,1763199037457,-174.0,0.00024764,3]
[394022103,1763199037478,-151.0,0.00024764,3]
[394022104,1763199037499,-174.63477033,0.00024764,3]
[394022105,1763199037520,-151.0,0.00024764,3]
[394022106,1763199037541,-151.0,0.00024764,3]
[394022107,1763199037563,-151.0,0.00024764,3]
[394022108,1763199037583,-151.0,0.00024766,7]
[394022109,1763199037605,-3578.83,0.00024767,2]
[394022110,1763199037628,-3578.83,0.00024767,2]
[394022112,1763199037654,-151.0,0.00024767,7]
[394022114,1763199037676,-912.3,0.00024767,2]
[394022118,1763199037697,-151.0,0.00024767,7]
[394022121,1763199037718,-151.0,0.00024767,7]
[394022123,1763199037739,-151.0,0.00024767,7]
[394022124,1763199037759,-151.0,0.00024767,7]
[394022125,1763199037781,-151.0,0.00024767,7]
[394022126,1763199037802,-151.0,0.00024767,7]
[394022127,1763199037826,-151.0,0.00024767,7]
[394022128,1763199037848,-151.0,0.00024767,2]
[394022129,1763199037870,-151.0,0.00024767,2]
[394022130,1763199037892,-171.156561,0.00024767,2]
[394022131,1763199037913,-151.0,0.00024767,7]
[394022132,1763199037936,-208.788539,0.00024767,7]
[394022133,1763199037958,-208.788539,0.00024767,7]
[394022134,1763199037979,-208.788539,0.00024767,7]
[394022135,1763199038000,-208.78853,0.00024767,7]
[394022136,1763199038023,-3578.83,0.00024769,2]
[394022137,1763199038045,-171.532473,0.00024769,7]
[394022138,1763199038067,-171.532473,0.00024769,7]
[394022139,1763199038089,-171.532473,0.00024769,7]
[394022140,1763199038111,-151.0,0.00024769,7]
[394022141,1763199038139,-151.0,0.00024769,7]
[394022142,1763199038161,-3578.83,0.0002477,2]
[394022143,1763199038183,-500.0,0.00024773,2]
[394022144,1763199038205,-503.10126858,0.00024773,2]
[394022145,1763199038228,-500.0,0.00024773,2]
[394022146,1763199038250,-500.0,0.00024773,2]
[394022147,1763199038272,-500.0,0.00024773,2]
[394022148,1763199038294,-512.30900408,0.00024773,2]
[394022149,1763199038318,-500.0,0.00024773,2]
[394022150,1763199038340,-222.46671014,0.00024773,2]
[394022151,1763199038363,-902.3,0.00024774,2]
[394022152,1763199038387,-595.32,0.0002479,3]
[394022153,1763199038410,-160.0,0.00024798,2]
[394022154,1763199038434,-151.0,0.000248,7]
[394022155,1763199038457,-151.0,0.000248,7]
[394022156,1763199038481,-211.595546,0.000248,7]
[394022157,1763199038505,-151.0,0.00024811,7]
[394022158,1763199038528,-151.0,0.00024811,7]
[394022159,1763199038550,-151.0,0.00024811,7]
[394022160,1763199038572,-151.0,0.00024811,7]
[394022161,1763199038593,-1263.24343872,0.00024831,2]
[394022162,1763199038615,-1292.07875231,0.00024831,2]
[394022163,1763199038638,-151.0,0.00024873,7]
[394022164,1763199038662,-3578.83,0.00024889,2]
[394022165,1763199038686,-171.532473,0.00024889,7]
[394022166,1763199038709,-171.532473,0.00024889,7]
[394022167,1763199038731,-171.532473,0.00024889,7]
[394022168,1763199038754,-151.0,0.00024889,7]
[394022169,1763199038777,-151.0,0.00024889,7]
[394022170,1763199038798,-1000.0,0.00024898,2]
[394022171,1763199038824,-427.57775906,0.00024898,2]
[394022172,1763199039156,-0.76438936,0.00024898,2]
[394022173,1763199039168,-571.65785158,0.00024898,2]